{"text_format":"1","workbook":"xlsx","n_sheets":3,"sheets":["List1","List2","List3"],"not_rendered":{"charts":0,"images":0,"macros":0,"external_links":1,"defined_names":0,"comments":0,"pivot_tables":0},"unopened":[],"bounds":{"document_bytes":16777216,"sheet_cells":100000,"rows_first":2000,"rows_last":500,"rows_between":2000,"halvings":0,"cell_chars":16384,"cell_head_chars":4096},"cells_cut":0,"cells_raw":0,"read":"whole","date_system":"1900"}

{"sheet":"List1","index":0,"n_rows":51,"n_cols":10,"rows_kept":51,"cut":false,"hidden":false,"merged":[]}
[]
[]
["Obec , IČ: Náklo, 00299251"]
[]
["Rozpočtové opatření č. 2 - únor  2023 "]
[]
["V souladu s ustanovením § 16 zákona č. 250/2000 Sb., o rozpočtových pravidlech územních rozpočtů dojde k rozpočtovému"]
["opatření v případě změn rozpočtových prostředků na závazných ukazatelích."]
[]
["Rozpočtové opatření č. 2/2023 (předloženo na Radě obce 20. 2. 2023) a doplněno při jednání na zasedání Rady obce"]
[]
["PŘÍJMY"]
["PAR","POL","UZ","PARAGRAF","popis","Rozpočet na rok 2023","Rozpočet po změnách","změna ROZP","ROZP po ZMĚNĚ","POZNÁMKA"]
[null,null,null,"Celkem ZMĚNY v PŘÍJMECH",null,34993632,35109432,0,{"$f":"H14+G14","v":35109432}]
[]
[null,null,null,"Celkem PŘÍJMY",null,{"$f":"F14","v":34993632},{"$f":"G14","v":35109432},{"$f":"H14","v":0},{"$f":"H16+G16","v":35109432}]
[]
["VÝDAJE:"]
["PAR","POL","UZ","PARAGRAF","popis","Rozpočet na rok 2023","Rozpočet po změnách","změna ROZP","ROZP po ZMĚNĚ","POZNÁMKA"]
[6171,5169,null,null,"Nákup ostatních služeb",1500000,1497210,-57242,{"$f":"F20+H20","v":1442758}]
[6171,null,null,"Činnost místní samosprávy",null,7127000,7982000,{"$f":"SUM(H20:H20)","v":-57242},{"$f":"H21+G21","v":7924758}]
[6402,6364,98187,null,"Vrartky transferů poskytnutých z veřejných rozpočtů",0,0,29042,{"$f":"H22+G22","v":29042},"vratka - volby do zastupitelstem"]
[6402,6364,98008,null,"Vrartky transferů poskytnutých z veřejných rozpočtů",0,0,28200,{"$f":"H23+G23","v":28200},"vratka - volby presidenta"]
[2321,null,null,"Odvádění a čištění odpadních vod",null,1162500,1162500,{"$f":"SUM(H22:H23)","v":57242},1219742]
[null,null,null,"Celkem ZMĚNY ve VÝDAJÍCH",null,41197270,47549519.170000002,{"$f":"H24+H21","v":0},{"$f":"G25+H25","v":47549519.170000002}]
[]
[null,null,null,"Celkem VÝDAJE",null,null,{"$f":"G25","v":47549519.170000002},{"$f":"H25","v":0},{"$f":"I25","v":47549519.170000002}]
[]
["FINANCOVÁNÍ"]
["PAR","POL","UZ","PARAGRAF","popis","Rozpočet na rok 2022","Rozpočet po změnách","změna ROZP","ROZP po ZMĚNĚ","POZNÁMKA"]
[]
[]
[null,null,null,"Celkem ZMĚNY ve FINANCOVÁNÍ:",null,null,null,null,{"$f":"I31","v":0}]
[]
[null,null,null,"REKAPITULACE:"]
[]
[null,null,null,"Celkem PŘÍJMY",null,null,{"$f":"G16","v":35109432},{"$f":"H14","v":0},{"$f":"H37+G37","v":35109432}]
[null,null,null,"Celkem FINANCOVÁNÍ:",null,null,{"$f":"15357431.17-2917344","v":12440087.17},{"$f":"I33","v":0},{"$f":"H38+G38","v":12440087.17}]
[null,null,null,"Celkem PŘÍJMY+FINANCOVÁNÍ",null,null,{"$f":"G38+G37","v":47549519.170000002},{"$f":"+H38+H37","v":0},47549519.170000002]
[]
[null,null,null,"Celkem VÝDAJE",null,null,{"$f":"G25","v":47549519.170000002},{"$f":"H25","v":0},{"$f":"H41+G41","v":47549519.170000002}]
[]
["Důvodová zpráva k rozpočtovému opatření č. 2 /2023"]
[]
["Přesun prostředků v rámci nezajištěného výdaje je Čerpán z rezervy obce."]
[]
["Správce rozpočtu : "]
[]
["Starosta obce : "]
[]
["Rada obce schvaluje dne 20.02. 2023 rozpočtové opatření č. 2/2023 v předloženém rozsahu."]

{"sheet":"List2","index":1,"n_rows":24,"n_cols":1,"rows_kept":24,"cut":false,"hidden":false,"merged":[]}
["TEXTY PRO FORMULÁŘ ÚPRAVA ROZPOČTU - na začátek kopírují se řádky 3-13"]
["poznámka: Texty, které budou přenášeny z tohoto formuláře, musí být zapsány pouze ve sloupci A"]
[]
[]
["Obec , IČ: Náklo, 00299251"]
[]
["Rozpočtové změny roku 2019 -duben"]
[]
["V souladu s ustanovením § 16 zákona č. 250/2000 Sb., o rozpočtových pravidlech územních rozpočtů dojde k rozpočtovému"]
["opatření v případě změn rozpočtových prostředků na závazných ukazatelích."]
[]
["Rozpočtové opatření č. 1/2019 (předloženo na ZQ 6. 6. 2018) a doplněno při jednání na ZO"]
[]
["TEXTY PRO FORMULÁŘ ÚPRAVA ROZPOČTU - na začátek kopírují se řádky 16-32"]
[]
["Důvodová zpráva k rozpočtovému opatření č. 1/2019"]
[]
["Přesun prostředků v rámci nezajištěného výdaje je Čerpán z rezervy obce."]
[]
["Správce rozpočtu : "]
[]
["Starosta obce : "]
[]
["ZO schvaluje dne 6. 6. 2018 rozpočtové opatření č. 3/2018 v předloženém rozsahu Usnesením č. 1038/1860"]

{"sheet":"List3","index":2,"n_rows":0,"n_cols":0,"rows_kept":0,"cut":false,"hidden":false,"merged":[]}